Workbook

Sheet 附件1
A1: 贵阳市综合行政执法局2023年公开招聘局属事业单位工作人员体检人员名单（第二批）
A2: 序号 | B2: 姓名 | C2: 准考证号 | D2: 单位 | E2: 报考岗位及代码 | F2: 笔试成绩 | G2: 笔试成绩（百分制） | H2: 笔试成绩60% | I2: 面试成绩 | J2: 面试成绩40% | K2: 笔试、面试成绩 | L2: 笔试成绩排名 | M2: 是否进入体检 | N2: 备注
A3: 1 | B3: 杨欣怡 | C3: 1152012301711 | D3: 贵阳市市政工程服务中心 | E3: 01管理岗位 | F3: 193.00 | G3: 64.33 | H3: 38.60 | I3: 86.40 | J3: 34.56 | K3: 73.16 | L3: 1 | M3: 是
A4: 2 | B4: 王祝杨 | C4: 1152012300629 | D4: 贵阳市市政工程服务中心 | E4: 01管理岗位 | F4: 189.50 | G4: 63.17 | H4: 37.90 | I4: 82.40 | J4: 32.96 | K4: 70.86 | L4: 2
A5: 3 | B5: 李代平 | C5: 1152012302221 | D5: 贵阳市市政工程服务中心 | E5: 01管理岗位 | F5: 188.00 | G5: 62.67 | H5: 37.60 | I5: 82.00 | J5: 32.80 | K5: 70.40 | L5: 3
A6: 4 | B6: 冉雨灵 | C6: 1152012300925 | D6: 贵阳市市政工程服务中心 | E6: 02管理岗位 | F6: 195.50 | G6: 65.17 | H6: 39.10 | I6: 84.20 | J6: 33.68 | K6: 72.78 | L6: 1 | M6: 是
A7: 5 | B7: 陶忠羽 | C7: 1152012301230 | D7: 贵阳市市政工程服务中心 | E7: 02管理岗位 | F7: 186.00 | G7: 62.00 | H7: 37.20 | I7: 84.00 | J7: 33.60 | K7: 70.80 | L7: 2
A8: 6 | B8: 骆在丹 | C8: 1152012301126 | D8: 贵阳市市政工程服务中心 | E8: 02管理岗位 | F8: 190.00 | G8: 63.33 | H8: 38.00 | I8: 76.20 | J8: 30.48 | K8: 68.48 | L8: 3
A10: 1 | B10: 孔松林 | C10: 1152010300426 | D10: 贵阳市城市管理信息中心 | E10: 01管理岗位 | F10: 198.50 | G10: =F10/3 -> 66.17 | H10: =F10/3*0.6 -> 39.70 | I10: 82.80 | J10: =I10*0.4 -> 33.12 | K10: =H10+J10 -> 72.82 | L10: 1 | M10: 是
A11: 2 | B11: 陈江艳 | C11: 1152010301717 | D11: 贵阳市城市管理信息中心 | E11: 01管理岗位 | F11: 202.50 | G11: =F11/3 -> 67.50 | H11: =F11/3*0.6 -> 40.50 | I11: 80.40 | J11: 32.16 | K11: 72.66 | L11: 2
A12: 3 | B12: 吴国宁 | C12: 1152010300209 | D12: 贵阳市城市管理信息中心 | E12: 01管理岗位 | F12: 195.50 | G12: =F12/3 -> 65.17 | H12: =F12/3*0.6 -> 39.10 | I12: 80.60 | J12: 32.24 | K12: 71.34 | L12: 3
A13: 4 | B13: 熊江 | C13: 1152010302530 | D13: 贵阳市城市管理信息中心 | E13: 02管理岗位 | F13: 208.50 | G13: 69.50 | H13: 41.70 | I13: 85.20 | J13: 34.08 | K13: 75.78 | L13: 1 | M13: 是
A14: 5 | B14: 彭子笈 | C14: 1152010300701 | D14: 贵阳市城市管理信息中心 | E14: 02管理岗位 | F14: 204.50 | G14: =F14/3 -> 68.17 | H14: =F14/3*0.6 -> 40.90 | I14: 84.00 | J14: 33.60 | K14: 74.50 | L14: 2
A15: 6 | B15: 马梦露 | C15: 1152010301212 | D15: 贵阳市城市管理信息中心 | E15: 02管理岗位 | F15: 206.00 | G15: 68.67 | H15: 41.20 | I15: 76.80 | J15: 30.72 | K15: 71.92 | L15: 3
A16: 7 | B16: 曾菁昕 | C16: 1152010301527 | D16: 贵阳市城市管理信息中心 | E16: 02管理岗位 | F16: 204.50 | G16: 68.17 | H16: 40.90 | I16: 75.40 | J16: 30.16 | K16: 71.06 | L16: 4
A17: 序号 | B17: 姓名 | C17: 准考证号 | D17: 单位 | E17: 报考岗位及代码 | F17: 笔试成绩 | G17: 笔试成绩（百分制） | H17: 笔试成绩30% | I17: 专业测试成绩 | J17: 专业测试成绩40% | K17: 笔试、专业测试成绩 | L17: 面试成绩 | M17: 面试成绩30% | N17: 笔试、专业测试、面试成绩 | O17: 笔试、专业测试成绩排名 | P17: 是否进入体检 | Q17: 备注
A18: 1 | B18: 曹凯 | C18: 1152012300603 | D18: 贵阳市市政工程服务中心 | E18: 03专业技术岗位 | F18: 192.50 | G18: 64.17 | H18: 19.25 | I18: 77.00 | J18: 30.80 | K18: 50.05 | L18: 80.40 | M18: 24.12 | N18: 74.17 | O18: 1 | P18: 是
A19: 2 | B19: 冉亚南 | C19: 1152012300713 | D19: 贵阳市市政工程服务中心 | E19: 03专业技术岗位 | F19: 144.00 | G19: 48.00 | H19: 14.40 | I19: 84.00 | J19: 33.60 | K19: 48.00 | L19: 82.20 | M19: 24.66 | N19: 72.66 | O19: 2 | P19: 是
A20: 3 | B20: 谢涛涛 | C20: 1152012301216 | D20: 贵阳市市政工程服务中心 | E20: 03专业技术岗位 | F20: 165.50 | G20: 55.17 | H20: 16.55 | I20: 62.00 | J20: 24.80 | K20: 41.35 | L20: 79.00 | M20: 23.70 | N20: 65.05 | O20: 3
A21: 4 | B21: 陈兴 | C21: 1152012301515 | D21: 贵阳市市政工程服务中心 | E21: 03专业技术岗位 | F21: 158.00 | G21: 52.67 | H21: 15.80 | I21: 80.00 | J21: 32.00 | K21: 47.80 | L21: 0 | M21: 0 | N21: 47.80 | O21: 4 | Q21: 放弃面试
A22: 5 | B22: 翟浩熙 | C22: 1152012300510 | D22: 贵阳市市政工程服务中心 | E22: 03专业技术岗位 | F22: 176.00 | G22: 58.67 | H22: 17.60 | I22: 61.00 | J22: 24.40 | K22: 42.00 | L22: 0 | M22: 0 | N22: 42.00 | O22: 5 | Q22: 放弃面试
A23: 6 | B23: 曾金宇 | C23: 1152012301724 | D23: 贵阳市市政工程服务中心 | E23: 03专业技术岗位 | F23: 143.00 | G23: 47.67 | H23: 14.30 | I23: 63.00 | J23: 25.20 | K23: 39.50 | L23: 0 | M23: 0 | N23: 39.50 | O23: 6 | Q23: 放弃面试
A25: 1 | B25: 代永庭 | C25: 1152010301024 | D25: 贵阳市城市管理信息中心 | E25: 03专业技术岗位 | F25: 204.00 | G25: =F25/3 -> 68.00 | H25: =F25/3*0.3 -> 20.40 | I25: 66.50 | J25: =I25*0.4 -> 26.60 | K25: =H25+J25 -> 47.00 | L25: 80.80 | M25: =L25*0.3 -> 24.24 | N25: =H25+J25+M25 -> 71.24 | O25: 1 | P25: 是
A26: 2 | B26: 王灿 | C26: 1152010300229 | D26: 贵阳市城市管理信息中心 | E26: 03专业技术岗位 | F26: 193.00 | G26: =F26/3 -> 64.33 | H26: =F26/3*0.3 -> 19.30 | I26: 71.50 | J26: =I26*0.4 -> 28.60 | K26: =H26+J26 -> 47.90 | L26: 77.00 | M26: 23.10 | N26: 71.00 | O26: 2 | P26: 是
A27: 3 | B27: 詹刚 | C27: 1152010302005 | D27: 贵阳市城市管理信息中心 | E27: 03专业技术岗位 | F27: 193.00 | G27: =F27/3 -> 64.33 | H27: =F27/3*0.3 -> 19.30 | I27: 66.00 | J27: =I27*0.4 -> 26.40 | K27: =H27+J27 -> 45.70 | L27: 79.00 | M27: 23.70 | N27: 69.40 | O27: 3
A28: 4 | B28: 董明月 | C28: 1152012301017 | D28: 贵阳市城市管理信息中心 | E28: 03专业技术岗位 | F28: 190.50 | G28: =F28/3 -> 63.50 | H28: =F28/3*0.3 -> 19.05 | I28: 62.00 | J28: =I28*0.4 -> 24.80 | K28: =H28+J28 -> 43.85 | L28: 79.00 | M28: 23.70 | N28: 67.55 | O28: 4
A29: 5 | B29: 付仙钰 | C29: 1152010300816 | D29: 贵阳市城市管理信息中心 | E29: 03专业技术岗位 | F29: 178.50 | G29: =F29/3 -> 59.50 | H29: =F29/3*0.3 -> 17.85 | I29: 65.50 | J29: =I29*0.4 -> 26.20 | K29: =H29+J29 -> 44.05 | L29: 78.20 | M29: 23.46 | N29: 67.51 | O29: 5
A30: 6 | B30: 贺毅 | C30: 1152012301209 | D30: 贵阳市城市管理信息中心 | E30: 03专业技术岗位 | F30: 189.00 | G30: 63.00 | H30: 18.90 | I30: 62.00 | J30: 24.80 | K30: 43.70 | L30: 75.20 | M30: 22.56 | N30: 66.26 | O30: 6
